fUSD/lending_fUSD_20240718
["ID","MTS","AMOUNT","RATE_DAILY","PERIOD"]
[332553999,1721292698416,-536.47,0.00032899,2]
[332554000,1721292698426,-536.47,0.00032899,2]
[332554001,1721292698436,-536.48,0.00032899,2]
[332554002,1721292698445,-241185.30974452,0.000329,30]
[332554003,1721292698465,-1279.32942339,0.000329,30]
[332554004,1721292698476,-380.63562552,0.000329,30]
[332554005,1721292698488,-61695.23119181,0.000329,30]
[332554006,1721292698498,-13364.92548462,0.000329,30]
[332554007,1721292698508,-258.47249,0.000329,7]
[332554008,1721292698518,-151.0,0.000329,7]
[332554009,1721292698527,-151.0,0.000329,7]
[332554010,1721292698537,-151.0,0.000329,7]
[332554011,1721292698550,-151.0,0.000329,7]
[332554012,1721292698560,-151.0,0.000329,7]
[332554013,1721292698570,-1116.93922,0.000329,7]
[332554014,1721292698579,-154.021008,0.000329,7]
[332554015,1721292698589,-1116.93922,0.000329,7]
[332554016,1721292698599,-154.021008,0.000329,7]
[332554017,1721292698607,-151.0,0.000329,7]
[332554018,1721292698618,-151.0,0.000329,7]
[332554019,1721292698628,-151.0,0.000329,7]
[332554020,1721292698637,-151.0,0.000329,7]
[332554021,1721292698647,-151.0,0.000329,7]
[332554022,1721292698656,-151.0,0.000329,7]
[332554023,1721292698666,-151.0,0.000329,7]
[332554024,1721292698675,-273.463733,0.000329,7]
[332554025,1721292698685,-151.0,0.000329,7]
[332554026,1721292698695,-151.0,0.000329,7]
[332554027,1721292698705,-151.0,0.000329,7]
[332554028,1721292698715,-151.0,0.000329,7]
[332554029,1721292698724,-151.0,0.000329,7]
[332554030,1721292698734,-305.499513,0.000329,7]
[332554031,1721292698744,-305.499513,0.000329,7]
[332554032,1721292698753,-151.0,0.000329,7]
[332554033,1721292698763,-151.0,0.000329,7]
[332554034,1721292698773,-151.0,0.000329,7]
[332554035,1721292698783,-151.0,0.000329,7]
[332554036,1721292698793,-151.0,0.000329,7]
[332554037,1721292698803,-151.0,0.000329,7]
[332554038,1721292698814,-151.0,0.000329,7]
[332554039,1721292698824,-151.0,0.000329,7]
[332554040,1721292698834,-151.0,0.000329,7]
[332554041,1721292698844,-151.0,0.000329,7]
[332554042,1721292698853,-296.616328,0.000329,7]
[332554043,1721292698862,-296.616328,0.000329,7]
[332554044,1721292698872,-151.0,0.000329,7]
[332554045,1721292698881,-151.0,0.000329,7]
[332554046,1721292698892,-7952.256722,0.000329,7]
[332554047,1721292698902,-215.003852,0.000329,7]
[332554048,1721292698912,-151.0,0.000329,7]
[332554049,1721292698921,-7952.256722,0.000329,7]
[332554050,1721292698931,-215.003852,0.000329,7]
[332554051,1721292698941,-151.0,0.000329,7]
[332554052,1721292698951,-1937.175774,0.000329,7]
[332554053,1721292698960,-1937.175774,0.000329,7]
[332554054,1721292698970,-151.0,0.000329,7]
[332554055,1721292698979,-151.0,0.000329,7]
[332554056,1721292698989,-197.98187,0.000329,7]
[332554057,1721292698999,-197.98187,0.000329,7]
[332554058,1721292699009,-151.0,0.000329,7]
[332554059,1721292699019,-151.0,0.000329,7]
[332554060,1721292699028,-151.0,0.000329,7]
[332554061,1721292699037,-151.0,0.000329,7]
[332554062,1721292699047,-151.0,0.000329,7]
[332554063,1721292699059,-500.0,0.00033149,2]
[332554064,1721292699069,-756.58,0.00033151,120]
[332554065,1721292699079,-156.49,0.000335,31]
[332554066,1721292699089,-156.49,0.000335,31]
[332554067,1721292699100,-151.0,0.00033785,7]
[332554068,1721292699110,-151.0,0.00033785,7]
[332554069,1721292699120,-639.95,0.00033785,2]
[332554070,1721292699130,-500.0,0.00033971,2]
[332554071,1721292699140,-219.63818568,0.00034001,2]
[332554072,1721292699149,-246.15,0.000342,2]
[332554073,1721292699159,-500.0,0.00034246,47]
[332554074,1721292699310,-1146.20027742,0.00034443,5]
[332554075,1721292699321,-151.0,0.00034454,7]
[332554076,1721292699331,-151.0,0.00034454,7]
[332554077,1721292699341,-151.0,0.00034454,7]
[332554078,1721292699351,-151.0,0.00034454,7]
[332554079,1721292699361,-698.349765,0.00034454,7]
[332554080,1721292699370,-698.349765,0.00034454,7]
[332554081,1721292699381,-151.0,0.00034454,7]
[332554082,1721292699391,-181.791827,0.00034454,7]
[332554083,1721292699401,-181.791827,0.00034454,7]
[332554084,1721292699411,-802.657947,0.00034454,7]
[332554085,1721292699422,-802.657947,0.00034454,7]
[332554086,1721292699432,-322.49558608,0.0003446,2]
[332554087,1721292699441,-150.0,0.00034548,10]
[332554088,1721292699451,-2110.0,0.00034644,15]
[332554089,1721292699460,-159.40121246,0.00034793,2]
[332554090,1721292699470,-150.0,0.00034932,2]
[332554091,1721292699480,-150.0,0.0003494,2]
[332554092,1721292699489,-150.0,0.00034949,2]
[332554093,1721292699498,-159.34189687,0.00034995,2]
[332554094,1721292699508,-3329.48360378,0.00034995,2]
[332554095,1721292699517,-150.0,0.00035068,2]
[332554096,1721292699526,-150.0,0.00035096,2]
[332554097,1721292699537,-150.0,0.00035097,2]
[332554098,1721292699550,-2585.0,0.000351,8]
[332554099,1721292699560,-150.0,0.00035122,2]
[332554100,1721292699570,-150.0,0.00035133,2]
[332554101,1721292699579,-150.0,0.00035134,2]
[332554102,1721292699589,-2110.0,0.00035144,15]
[332554103,1721292699599,-1297.79836596,0.00035146,7]
[332554104,1721292699609,-1297.79836584,0.00035146,7]
[332554105,1721292699618,-1297.79836584,0.00035146,7]
[332554106,1721292699629,-1297.79836584,0.00035146,7]
[332554107,1721292699639,-1297.79836584,0.00035146,7]
[332554108,1721292699649,-1297.79836584,0.00035146,7]
[332554109,1721292699659,-1297.79836584,0.00035146,7]
[332554110,1721292699668,-1297.79836584,0.00035146,7]
[332554111,1721292699678,-1297.79836584,0.00035146,7]
[332554112,1721292699688,-199.79938361,0.00035146,10]
[332554113,1721292699697,-191.3878521,0.00035146,4]
[332554114,1721292699707,-155.0,0.00035146,2]
[332554115,1721292699718,-561.73176392,0.00035146,4]
[332554116,1721292699733,-206.90615813,0.00035146,4]
[332554117,1721292699744,-1615.19148214,0.00035146,2]
[332554118,1721292699755,-384.80851786,0.00035146,2]
[332554119,1721292699765,-200.0,0.00035146,2]
[332554120,1721292699775,-2500.0,0.00035146,2]
[332554121,1721292699784,-150.0,0.00035159,2]
[332554122,1721292699794,-150.0,0.00035163,2]
[332554123,1721292699804,-150.0,0.00035182,2]
[332554124,1721292699814,-150.0,0.00035183,2]
[332554125,1721292699823,-5.85808214,0.00035231,2]
[332554126,1721292699834,-144.14191786,0.00035231,2]
[332554127,1721292699844,-150.0,0.0003524,2]
[332554128,1721292699853,-150.0,0.00035241,2]
[332554129,1721292699863,-150.0,0.00035242,2]
[332554130,1721292699873,-150.0,0.00035242,2]
[332554131,1721292699882,-150.0,0.00035256,2]
[332554132,1721292699891,-150.0,0.00035274,2]
[332554133,1721292699902,-150.0,0.00035276,2]
[332554134,1721292699911,-150.0,0.00035281,2]
[332554135,1721292699922,-150.0,0.00035291,2]
[332554136,1721292699932,-150.0,0.00035292,2]
[332554137,1721292699942,-150.0,0.00035319,2]
[332554138,1721292699952,-150.0,0.0003532,2]
[332554139,1721292699962,-150.0,0.00035323,2]
[332554140,1721292699972,-150.0,0.00035333,2]
[332554141,1721292699982,-150.0,0.00035352,2]
[332554142,1721292699992,-150.0,0.00035354,2]
[332554143,1721292700001,-150.0,0.00035356,2]
[332554144,1721292700010,-150.0,0.00035361,2]
[332554145,1721292700020,-150.0,0.00035387,2]
[332554146,1721292700030,-150.0,0.00035389,2]
[332554147,1721292700040,-150.0,0.00035391,2]
[332554148,1721292700050,-150.0,0.00035394,2]
[332554149,1721292700060,-150.0,0.00035417,2]
[332554150,1721292700070,-150.0,0.00035417,2]
[332554151,1721292700080,-150.0,0.00035426,2]
[332554152,1721292700090,-150.0,0.00035427,2]
[332554153,1721292700101,-150.0,0.00035433,2]
[332554154,1721292700110,-150.0,0.00035435,2]
[332554155,1721292700120,-150.0,0.00035442,2]
[332554156,1721292700130,-150.0,0.00035454,2]
[332554157,1721292700140,-150.0,0.00035461,2]
[332554158,1721292700150,-150.0,0.0003547,2]
[332554159,1721292700159,-150.0,0.00035482,2]
[332554160,1721292700169,-200.0,0.00035497,2]
[332554161,1721292700179,-150.0,0.00035509,2]
[332554162,1721292700189,-150.0,0.00035513,2]
[332554163,1721292700199,-150.0,0.00035513,2]
[332554164,1721292700209,-150.0,0.00035537,2]
[332554165,1721292700219,-150.0,0.00035558,2]
[332554166,1721292700229,-150.0,0.0003556,2]
[332554167,1721292700239,-150.0,0.00035568,2]
[332554168,1721292700249,-150.0,0.00035569,2]
[332554169,1721292700258,-150.0,0.00035576,2]
[332554170,1721292700268,-150.0,0.00035584,2]
[332554171,1721292700278,-500.0,0.00035616,52]
[332554172,1721292700288,-150.0,0.0003562,2]
[332554173,1721292700298,-150.0,0.00035633,2]
[332554174,1721292700307,-150.0,0.00035633,2]
[332554175,1721292700318,-150.0,0.00035637,2]
[332554176,1721292700328,-150.0,0.00035641,2]
[332554177,1721292700337,-2110.0,0.00035644,15]
[332554178,1721292700347,-150.0,0.00035645,2]
[332554179,1721292700356,-150.0,0.00035665,2]
[332554180,1721292700365,-150.0,0.0003569,2]
[332554181,1721292700375,-150.0,0.000357,7]
[332554182,1721292700384,-150.0,0.00035703,2]
[332554183,1721292700394,-150.0,0.00035708,2]
[332554184,1721292700404,-150.0,0.00035726,2]
[332554185,1721292700414,-150.0,0.00035739,2]
[332554186,1721292700424,-150.0,0.00035752,2]
[332554187,1721292700434,-150.0,0.00035752,2]
[332554188,1721292700444,-150.0,0.00035752,2]
[332554189,1721292700453,-150.0,0.00035783,2]
[332554190,1721292700463,-150.0,0.00035785,2]
[332554191,1721292700473,-150.0,0.00035792,2]
[332554192,1721292700483,-150.0,0.00035805,2]
[332554193,1721292700492,-150.0,0.00035815,2]
[332554194,1721292700502,-150.0,0.00035815,2]
[332554195,1721292700511,-150.0,0.00035829,2]
[332554196,1721292700520,-150.0,0.00035836,2]
[332554197,1721292700529,-150.0,0.00035838,2]
[332554198,1721292700539,-279.92987346,0.00035846,10]
[332554199,1721292700664,-220.07012654,0.00035846,10]
[332554200,1721292700673,-150.0,0.00035846,2]
[332554201,1721292700683,-150.0,0.00035847,2]
[332554202,1721292700694,-150.0,0.00035854,2]
[332554203,1721292700704,-150.0,0.00035883,2]
[332554204,1721292700714,-150.0,0.00035895,2]
[332554205,1721292700724,-150.0,0.00035898,2]
[332554206,1721292700735,-150.0,0.00035923,2]
[332554207,1721292700745,-150.0,0.00035945,2]
[332554208,1721292700756,-150.0,0.00035958,2]
[332554209,1721292700765,-500.0,0.0003596,10]
[332554210,1721292700775,-200.0,0.0003596,10]
[332554211,1721292700784,-150.0,0.00035965,2]
[332554212,1721292700793,-150.0,0.00035979,2]
[332554213,1721292700804,-150.0,0.00036012,2]
[332554214,1721292700814,-150.0,0.00036015,2]
[332554215,1721292700823,-150.0,0.0003602,2]
[332554216,1721292700832,-150.0,0.0003603,2]
[332554217,1721292700841,-150.0,0.00036034,2]
[332554218,1721292700851,-167.74076078,0.00036054,2]
[332554219,1721292700861,-183.48123099,0.00036055,8]
[332554220,1721292700871,-6426.03440052,0.00036065,2]
[332554221,1721292700882,-4621.25456949,0.00036065,2]
[332554222,1721292700891,-322.49558608,0.00036065,2]
[332554223,1721292700900,-202.37217045,0.00036065,8]
[332554224,1721292700911,-219.63818568,0.00036065,2]
[332554225,1721292700920,-151.0,0.00036073,7]
[332554226,1721292700930,-151.0,0.00036073,7]
[332554227,1721292700941,-151.0,0.00036073,7]
[332554228,1721292700951,-151.0,0.00036073,7]
[332554229,1721292700961,-151.0,0.00036073,7]
[332554230,1721292700971,-158.655912,0.00036073,7]
[332554231,1721292700981,-500.0,0.00036073,10]
[332554232,1721292700991,-200.0,0.00036073,10]
[332554233,1721292701001,-151.0,0.00036095,7]
[332554234,1721292701011,-151.0,0.00036095,7]
[332554235,1721292701021,-151.0,0.00036095,7]
[332554236,1721292701030,-151.0,0.00036095,7]
[332554237,1721292701040,-151.0,0.00036095,7]
[332554238,1721292701050,-150.0,0.00036098,2]
[332554239,1721292701059,-150.0,0.000361,2]
[332554240,1721292701070,-150.0,0.00036106,2]
[332554241,1721292701081,-191.04650164,0.00036126,2]
[332554242,1721292701091,-13152.22186279,0.00036129,4]
[332554243,1721292701193,-574.42355092,0.00021917,2]
[332554244,1721292701205,-329.70014336,0.00021917,2]
[332554245,1721292701217,-1494.28260821,0.00021917,2]
[332554246,1721292701228,-22750.07533351,0.00021917,2]
[332554247,1721292701237,-500.0,0.00021917,2]
[332554248,1721292701247,-500.0,0.00021917,2]
[332554249,1721292701256,-500.0,0.00022191,2]
[332554250,1721292701265,-151.0,0.00022191,7]
[332554251,1721292701275,-500.0,0.00022465,2]
[332554252,1721292701284,-500.0,0.00022465,2]
[332554253,1721292701294,-500.0,0.00022465,2]
[332554254,1721292701303,-500.0,0.00022739,2]
[332554255,1721292701312,-500.0,0.00022739,2]
[332554256,1721292701321,-500.0,0.00023013,2]
[332554257,1721292701330,-500.0,0.00023287,2]
[332554258,1721292701340,-500.0,0.00023561,2]
[332554259,1721292701349,-404.23628242,0.00023835,2]
[332554260,1721292701358,-1500.56,0.00027397,10]
[332554261,1721292701368,-2036.8614985,0.00036129,4]
[332554262,1721292701378,-326.668257,0.00036129,7]
[332554263,1721292701387,-326.668257,0.00036129,7]
[332554264,1721292701396,-151.0,0.00036129,7]
[332554265,1721292701406,-151.577813,0.00036129,7]
[332554266,1721292701415,-151.577813,0.00036129,7]
[332554267,1721292701425,-151.0,0.00036129,7]
[332554268,1721292701434,-210.27964394,0.00036134,2]
[332554269,1721292701443,-936.93920447,0.00036134,2]
[332554270,1721292701453,-150.0,0.00036135,2]
[332554271,1721292701463,-1252.92148855,0.00036139,2]
[332554272,1721292701473,-155.0,0.00036139,4]
[332554273,1721292701483,-1252.92148855,0.00036139,2]
[332554274,1721292701492,-303.24554169,0.00036142,4]
[332554275,1721292701502,-2110.0,0.00036144,15]
[332554276,1721292701512,-151.0,0.00036145,7]
[332554277,1721292701522,-151.0,0.00036145,7]
[332554278,1721292701531,-151.0,0.00036145,7]
[332554279,1721292701543,-151.0,0.00036145,7]
[332554280,1721292701554,-151.0,0.00036145,7]
[332554281,1721292701565,-151.0,0.00036145,7]
[332554282,1721292701575,-1116.93922,0.00036145,7]
[332554283,1721292701584,-154.021008,0.00036145,7]
[332554284,1721292701594,-1116.93922,0.00036145,7]
[332554285,1721292701603,-154.021008,0.00036145,7]
[332554286,1721292701613,-151.0,0.00036145,7]
[332554287,1721292701623,-151.0,0.00036145,7]
[332554288,1721292701633,-151.0,0.00036145,7]
[332554289,1721292701643,-151.0,0.00036145,7]
[332554290,1721292701788,-151.0,0.00036145,7]
[332554291,1721292701798,-151.0,0.00036145,7]
[332554292,1721292701808,-151.0,0.00036145,7]
[332554293,1721292701819,-151.0,0.00036145,7]
[332554294,1721292701829,-151.0,0.00036145,7]
[332554295,1721292701839,-151.0,0.00036145,7]
[332554296,1721292701848,-151.0,0.00036145,7]
[332554297,1721292701858,-305.499513,0.00036145,7]
[332554298,1721292701868,-305.499513,0.00036145,7]
[332554299,1721292701878,-151.0,0.00036145,7]
[332554300,1721292701887,-7952.256722,0.00036145,7]
[332554301,1721292701897,-215.003852,0.00036145,7]
[332554302,1721292701906,-7952.256722,0.00036145,7]
[332554303,1721292701916,-215.003852,0.00036145,7]
[332554304,1721292701926,-151.0,0.00036145,7]
[332554305,1721292701936,-1937.175774,0.00036145,7]
[332554306,1721292701946,-1937.175774,0.00036145,7]
[332554307,1721292701956,-151.0,0.00036145,7]
[332554308,1721292701966,-151.0,0.00036145,7]
[332554309,1721292701976,-197.98187,0.00036145,7]
[332554310,1721292701986,-197.98187,0.00036145,7]
[332554311,1721292701995,-151.0,0.00036145,7]
[332554312,1721292702005,-151.0,0.00036145,7]
[332554313,1721292702016,-151.0,0.00036146,7]
[332554314,1721292702025,-151.0,0.00036146,7]
[332554315,1721292702036,-151.0,0.00036146,7]
[332554316,1721292702046,-151.0,0.00036146,7]
[332554317,1721292702055,-160.942943,0.00036146,7]
[332554318,1721292702067,-151.0,0.00036146,7]
[332554319,1721292702077,-151.0,0.00036146,7]
[332554320,1721292702087,-151.552248,0.00036146,7]
[332554321,1721292702097,-151.0,0.00036146,7]
[332554322,1721292702107,-151.0,0.00036146,7]
[332554323,1721292702116,-151.0,0.00036146,7]
[332554324,1721292702126,-151.0,0.00036146,7]
[332554325,1721292702135,-151.0,0.00036146,7]
[332554326,1721292702145,-151.0,0.00036146,7]
[332554327,1721292702155,-151.0,0.00036146,7]
[332554328,1721292702165,-201.452247,0.00036146,7]
[332554329,1721292702174,-151.0,0.00036146,7]
[332554330,1721292702184,-151.0,0.00036146,7]
[332554331,1721292702194,-151.0,0.00036146,7]
[332554332,1721292702203,-151.0,0.00036146,7]
[332554333,1721292702213,-151.0,0.00036146,7]
[332554334,1721292702223,-157.756702,0.00036146,7]
[332554335,1721292702233,-151.0,0.00036146,7]
[332554336,1721292702242,-151.0,0.00036146,7]
[332554337,1721292702251,-151.0,0.00036146,7]
[332554338,1721292702261,-151.0,0.00036146,7]
[332554339,1721292702270,-151.0,0.00036146,7]
[332554340,1721292702280,-1116.93922,0.00036146,7]
[332554341,1721292702290,-154.021008,0.00036146,7]
[332554342,1721292702300,-1116.93922,0.00036146,7]
[332554343,1721292702310,-154.021008,0.00036146,7]
[332554344,1721292702321,-1116.93922,0.00036146,7]
[332554345,1721292702330,-154.021008,0.00036146,7]
[332554346,1721292702339,-1116.93922,0.00036146,7]
[332554347,1721292702348,-154.021008,0.00036146,7]
[332554348,1721292702357,-1116.93922,0.00036146,7]
[332554349,1721292702367,-154.021008,0.00036146,7]
[332554350,1721292702376,-1116.93922,0.00036146,7]
[332554351,1721292702385,-154.021008,0.00036146,7]
[332554352,1721292702395,-1116.93922,0.00036146,7]
[332554353,1721292702404,-1116.93922,0.00036146,7]
[332554354,1721292702414,-154.021008,0.00036146,7]
[332554355,1721292702423,-1116.93922,0.00036146,7]
[332554356,1721292702432,-154.021008,0.00036146,7]
[332554357,1721292702441,-154.021008,0.00036146,7]
[332554358,1721292702452,-154.021008,0.00036146,7]
[332554359,1721292702461,-154.021008,0.00036146,7]
[332554360,1721292702471,-1116.93922,0.00036146,7]
[332554361,1721292702481,-154.021008,0.00036146,7]
[332554362,1721292702491,-1116.93922,0.00036146,7]
[332554363,1721292702500,-154.021008,0.00036146,7]
[332554364,1721292702510,-1116.93922,0.00036146,7]
[332554365,1721292702519,-1116.93922,0.00036146,7]
[332554366,1721292702529,-154.021008,0.00036146,7]
[332554367,1721292702540,-1116.93922,0.00036146,7]
[332554368,1721292702552,-154.021008,0.00036146,7]
[332554369,1721292702562,-1116.93922,0.00036146,7]
[332554370,1721292702572,-154.021,0.00036146,7]
[332554371,1721292702582,-1116.939215,0.00036146,7]
[332554372,1721292702591,-151.0,0.00036146,7]
[332554373,1721292702600,-151.0,0.00036146,7]
[332554374,1721292702609,-151.0,0.00036146,7]
[332554375,1721292702619,-151.0,0.00036146,7]
[332554376,1721292702629,-151.0,0.00036146,7]
[332554377,1721292702639,-151.0,0.00036146,7]
[332554378,1721292702648,-151.0,0.00036146,7]
[332554379,1721292702658,-151.0,0.00036146,7]
[332554380,1721292702667,-151.0,0.00036146,7]
[332554381,1721292702676,-151.0,0.00036146,7]
[332554382,1721292702686,-151.0,0.00036146,7]
[332554383,1721292702695,-151.0,0.00036146,7]
[332554384,1721292702704,-151.0,0.00036146,7]
[332554385,1721292702714,-151.0,0.00036146,7]
[332554386,1721292702724,-151.0,0.00036146,7]
[332554387,1721292702733,-153.74264,0.00036146,7]
[332554388,1721292702743,-151.0,0.00036146,7]
[332554389,1721292702752,-246.422179,0.00036146,7]
[332554390,1721292702762,-151.0,0.00036146,7]
[332554391,1721292702772,-151.0,0.00036146,7]
[332554392,1721292702782,-151.0,0.00036146,7]
[332554393,1721292702792,-151.0,0.00036146,7]
[332554394,1721292702801,-151.0,0.00036146,7]
[332554395,1721292702812,-151.0,0.00036146,7]
[332554396,1721292702821,-151.0,0.00036146,7]
[332554397,1721292702831,-151.0,0.00036146,7]
[332554398,1721292702840,-151.0,0.00036146,7]
[332554399,1721292702850,-151.0,0.00036146,7]
[332554400,1721292702860,-151.0,0.00036146,7]
[332554401,1721292702869,-151.0,0.00036146,7]
[332554402,1721292702879,-151.0,0.00036146,7]
[332554403,1721292702890,-151.0,0.00036146,7]
[332554404,1721292702899,-165.89865,0.00036146,7]
[332554405,1721292702909,-305.499513,0.00036146,7]
[332554406,1721292702919,-305.499513,0.00036146,7]
[332554407,1721292702928,-305.499513,0.00036146,7]
[332554408,1721292702938,-305.499513,0.00036146,7]
[332554409,1721292702948,-305.499513,0.00036146,7]
[332554410,1721292702957,-305.499513,0.00036146,7]
[332554411,1721292702967,-305.499513,0.00036146,7]
[332554412,1721292702986,-305.499513,0.00036146,7]
[332554413,1721292703001,-305.499513,0.00036146,7]
[332554414,1721292703016,-305.499513,0.00036146,7]
[332554415,1721292703033,-305.499513,0.00036146,7]
[332554416,1721292703050,-305.499513,0.00036146,7]
[332554417,1721292703065,-305.499513,0.00036146,7]
[332554418,1721292703081,-305.499517,0.00036146,7]
[332554419,1721292703098,-151.0,0.00036154,7]
[332554420,1721292703111,-151.0,0.00036154,7]
[332554421,1721292703126,-151.0,0.00036154,7]
[332554422,1721292703142,-225.202507,0.00036154,7]
[332554423,1721292703160,-151.0,0.00036154,7]
[332554424,1721292703174,-151.0,0.00036154,7]
[332554425,1721292703186,-151.0,0.00036154,7]
[332554426,1721292703202,-151.0,0.00036154,7]
[332554427,1721292703216,-151.0,0.00036154,7]
[332554428,1721292703232,-151.0,0.00036154,7]
[332554429,1721292703247,-169.389,0.00036154,7]
[332554430,1721292703259,-151.0,0.00036154,7]
[332554431,1721292703272,-151.0,0.00036154,7]
[332554432,1721292703285,-151.0,0.00036154,7]
[332554433,1721292703300,-151.0,0.00036154,7]
[332554434,1721292703314,-151.0,0.00036154,7]
[332554435,1721292703328,-301.995424,0.00036154,7]
[332554436,1721292703341,-151.0,0.00036154,7]
[332554437,1721292703355,-151.0,0.00036154,7]
[332554438,1721292703368,-151.0,0.00036154,7]
[332554439,1721292703381,-151.0,0.00036154,7]
[332554440,1721292703394,-151.0,0.00036154,7]
[332554441,1721292703409,-151.0,0.00036154,7]
[332554442,1721292703423,-175.16,0.00036154,7]
[332554443,1721292703437,-151.0,0.00036154,7]
[332554444,1721292703450,-151.0,0.00036154,7]
[332554445,1721292703465,-151.0,0.00036154,7]
[332554446,1721292703478,-151.0,0.00036154,7]
[332554447,1721292703492,-151.0,0.00036154,7]
[332554448,1721292703504,-151.0,0.00036154,7]
[332554449,1721292703513,-151.0,0.00036154,7]
[332554450,1721292703521,-151.0,0.00036154,7]
[332554451,1721292703530,-151.0,0.00036154,7]
[332554452,1721292703544,-151.0,0.00036154,7]
[332554453,1721292703554,-151.0,0.00036154,7]
[332554454,1721292703564,-151.0,0.00036154,7]
[332554455,1721292703572,-151.0,0.00036154,7]
[332554456,1721292703582,-151.0,0.00036154,7]
[332554457,1721292703592,-151.0,0.00036154,7]
[332554458,1721292703601,-698.349765,0.00036154,7]
[332554459,1721292703611,-698.349765,0.00036154,7]
[332554460,1721292703622,-698.349765,0.00036154,7]
[332554461,1721292703631,-698.349765,0.00036154,7]
[332554462,1721292703642,-698.349765,0.00036154,7]
[332554463,1721292703651,-698.349765,0.00036154,7]
[332554464,1721292703661,-698.349765,0.00036154,7]
[332554465,1721292703670,-698.349765,0.00036154,7]
[332554466,1721292703679,-698.349765,0.00036154,7]
[332554467,1721292703688,-698.349765,0.00036154,7]
[332554468,1721292703697,-698.349765,0.00036154,7]
[332554469,1721292703706,-698.349765,0.00036154,7]
[332554470,1721292703715,-698.349765,0.00036154,7]
[332554471,1721292703724,-698.349762,0.00036154,7]
[332554472,1721292703733,-151.0,0.00036154,7]
[332554473,1721292703742,-151.0,0.00036154,7]
[332554474,1721292703752,-181.791827,0.00036154,7]
[332554475,1721292703761,-181.791827,0.00036154,7]
[332554476,1721292703771,-181.791827,0.00036154,7]
[332554477,1721292703780,-181.791827,0.00036154,7]
[332554478,1721292703789,-181.791827,0.00036154,7]
[332554479,1721292703798,-181.791827,0.00036154,7]
[332554480,1721292703807,-181.791827,0.00036154,7]
[332554481,1721292703817,-181.791827,0.00036154,7]
[332554482,1721292703827,-181.791827,0.00036154,7]
[332554483,1721292703838,-181.791827,0.00036154,7]
[332554484,1721292703847,-181.791827,0.00036154,7]
[332554485,1721292703856,-181.791827,0.00036154,7]
[332554486,1721292703866,-181.791827,0.00036154,7]
[332554487,1721292703875,-181.791825,0.00036154,7]
[332554488,1721292703885,-151.0,0.00036154,7]
[332554489,1721292703895,-151.0,0.00036154,7]
[332554490,1721292703904,-151.0,0.00036154,7]
[332554491,1721292703914,-151.0,0.00036154,7]
[332554492,1721292703923,-151.0,0.00036154,7]
[332554493,1721292703933,-151.0,0.00036154,7]
[332554494,1721292703942,-266.253403,0.00036154,7]
[332554495,1721292703952,-151.0,0.00036154,7]
[332554496,1721292703961,-151.0,0.00036154,7]
[332554497,1721292703970,-151.0,0.00036154,7]
[332554498,1721292703980,-151.0,0.00036154,7]